fUST/lending_fUST_20260213
["ID","MTS","AMOUNT","RATE_DAILY","PERIOD"]
[405279347,1770938364943,-109104.37354414,0.00033,120]
[405279348,1770938364989,-151.0,0.00033,31]
[405279349,1770938365034,-151.0,0.00033,31]
[405279350,1770938365081,-199.18111,0.00033,31]
[405279351,1770938365124,-631.46,0.000332,30]
[405279352,1770938365167,-178.60266113,0.000332,117]
[405279353,1770938365211,-151.0,0.00033314,31]
[405279354,1770938365256,-151.0,0.00033314,31]
[405279355,1770938365301,-151.0,0.00033314,31]
[405279356,1770938365345,-151.0,0.00033314,31]
[405279357,1770938365387,-151.0,0.00033423,31]
[405279358,1770938365432,-600.0,0.00033659,30]
[405279359,1770938365475,-151.0,0.000337,31]
[405279360,1770938365519,-151.0,0.000337,31]
[405279361,1770938365559,-151.0,0.00033778,31]
[405279362,1770938365602,-151.0,0.00033778,31]
[405279363,1770938365645,-65847.89486987,0.00033788,60]
[405279364,1770938365687,-151.0,0.00033788,31]
[405279365,1770938365734,-151.0,0.00033788,31]
[405279366,1770938365779,-172.28075914,0.00033799,88]
[405279367,1770938365827,-261.52478426,0.00033955,120]
[405279368,1770938365871,-164.01788158,0.00033955,120]
[405279369,1770938365912,-198.76563,0.0003398,31]
[405279370,1770938365955,-151.0,0.0003398,31]
[405279371,1770938365999,-151.0,0.0003399,31]
[405279372,1770938366045,-172.28075914,0.00034715,110]
[405279373,1770938366086,-1062.57805076,0.00035,30]
[405279374,1770938366124,-433.41954908,0.00035,40]
[405279375,1770938366164,-400.0,0.00035,120]
[405279376,1770938366202,-23697.7718764,0.00035103,120]
[405279377,1770938366241,-1286.29,0.000355,30]
[405279378,1770938366280,-1286.29,0.000355,60]
[405279379,1770938366321,-1286.29,0.000355,30]
[405279380,1770938366363,-631.46,0.000355,30]
[405279381,1770938366404,-500.0,0.00035616,120]
[405279382,1770938366443,-500.0,0.00035616,120]
[405279383,1770938366490,-500.0,0.00035616,120]
[405279384,1770938366533,-500.0,0.0003589,120]
[405279385,1770938366573,-500.0,0.0003589,120]
[405279386,1770938366613,-184.60958317,0.00036,30]
[405279387,1770938366653,-400.0,0.00036,120]
[405279388,1770938366692,-178.60266112,0.00036073,120]
[405279389,1770938366737,-500.0,0.00036164,120]
[405279390,1770938366777,-500.0,0.00036164,120]
[405279391,1770938366821,-500.0,0.00036438,120]
[405279392,1770938366999,-500.0,0.00036438,120]
[405279393,1770938367043,-500.0,0.00036712,120]
[405279394,1770938367083,-500.0,0.00036712,120]
[405279395,1770938367123,-585.15636156,0.00036986,120]
[405279396,1770938367161,-500.0,0.00036986,120]
[405279397,1770938367200,-631.46,0.00037,30]
[405279398,1770938367238,-400.0,0.00037,120]
[405279399,1770938367277,-720.0,0.00037025,30]
[405279400,1770938367315,-500.0,0.0003726,120]
[405279401,1770938367353,-500.0,0.00037534,120]
[405279402,1770938367391,-247.19278159,0.00037808,120]
[405279403,1770938367431,-194.72792766,0.00037888,31]
[405279404,1770938367479,-187.78006525,0.00037889,31]
[405279405,1770938367518,-3000.0,0.000379,120]
[405279406,1770938367557,-5000.0,0.00037911,30]
[405279407,1770938367598,-5000.0,0.00037911,30]
[405279408,1770938367647,-181.08010149,0.00037999,31]
[405279409,1770938367691,-400.0,0.00038,120]
[405279410,1770938367735,-1296.234,0.000381,60]
[405279411,1770938367776,-1296.23,0.000381,120]
[405279412,1770938367826,-174.61919141,0.00038298,30]
[405279413,1770938367868,-619.937915,0.00038356,120]
[405279414,1770938367909,-619.937915,0.00038356,120]
[405279415,1770938367948,-619.937915,0.00038356,120]
[405279416,1770938367985,-619.937915,0.00038356,120]
[405279417,1770938368023,-619.937915,0.00038356,120]
[405279418,1770938368059,-619.937915,0.00038356,120]
[405279419,1770938368094,-619.937915,0.00038356,120]
[405279420,1770938368132,-619.937915,0.00038356,120]
[405279421,1770938368172,-619.937915,0.00038356,120]
[405279422,1770938368212,-619.937915,0.00038356,120]
[405279423,1770938368251,-619.937915,0.00038356,120]
[405279424,1770938368292,-619.937915,0.00038356,120]
[405279425,1770938368333,-619.937915,0.00038356,120]
[405279426,1770938368375,-619.937915,0.00038356,120]
[405279427,1770938368416,-619.937915,0.00038356,120]
[405279428,1770938368455,-619.937915,0.00038356,120]
[405279429,1770938368495,-619.937915,0.00038356,120]
[405279430,1770938368535,-619.937915,0.00038356,120]
[405279431,1770938368575,-619.937915,0.00038356,120]
[405279432,1770938368615,-619.937907,0.00038356,120]
[405279433,1770938368653,-151.0,0.00038356,120]
[405279434,1770938368689,-151.0,0.00038356,120]
[405279435,1770938368724,-179.548989,0.00038356,120]
[405279436,1770938368760,-293.861405,0.00038356,120]
[405279437,1770938368797,-293.861405,0.00038356,120]
[405279438,1770938368833,-293.861405,0.00038356,120]
[405279439,1770938368871,-293.861405,0.00038356,120]
[405279440,1770938368911,-293.861405,0.00038356,120]
[405279441,1770938368950,-293.861405,0.00038356,120]
[405279442,1770938368990,-293.861405,0.00038356,120]
[405279443,1770938369027,-293.861405,0.00038356,120]
[405279444,1770938369065,-293.861405,0.00038356,120]
[405279445,1770938369103,-293.861405,0.00038356,120]
[405279446,1770938369140,-293.861405,0.00038356,120]
[405279447,1770938369176,-293.861405,0.00038356,120]
[405279448,1770938369209,-293.861405,0.00038356,120]
[405279449,1770938369244,-293.861405,0.00038356,120]
[405279450,1770938369279,-293.861405,0.00038356,120]
[405279451,1770938369317,-293.861405,0.00038356,120]
[405279452,1770938369364,-293.861405,0.00038356,120]
[405279453,1770938369410,-293.861405,0.00038356,120]
[405279454,1770938369455,-293.861405,0.00038356,120]
[405279455,1770938369494,-293.861403,0.00038356,120]
[405279456,1770938369535,-151.0,0.00038356,120]
[405279457,1770938369575,-151.0,0.00038356,120]
[405279458,1770938369615,-151.0,0.00038356,120]
[405279459,1770938369656,-151.0,0.00038356,120]
[405279460,1770938369695,-151.0,0.00038356,120]
[405279461,1770938369735,-216.99969,0.00038356,120]
[405279462,1770938369777,-151.0,0.00038356,120]
[405279463,1770938369824,-151.0,0.00038356,120]
[405279464,1770938369865,-151.0,0.00038356,120]
[405279465,1770938369908,-151.0,0.00038356,120]
[405279466,1770938369950,-151.0,0.00038356,120]
[405279467,1770938369992,-151.0,0.00038356,120]
[405279468,1770938370036,-151.0,0.00038356,120]
[405279469,1770938370080,-151.0,0.00038356,120]
[405279470,1770938370120,-151.0,0.00038356,120]
[405279471,1770938370160,-151.0,0.00038356,120]
[405279472,1770938370196,-151.0,0.00038356,120]
[405279473,1770938370235,-151.0,0.00038356,120]
[405279474,1770938370275,-151.0,0.00038356,120]
[405279475,1770938370317,-151.0,0.00038356,120]
[405279476,1770938370512,-151.0,0.00038356,120]
[405279477,1770938370555,-151.0,0.00038356,120]
[405279478,1770938370597,-151.0,0.00038356,120]
[405279479,1770938370639,-151.0,0.00038356,120]
[405279480,1770938370681,-185.903027,0.00038356,120]
[405279481,1770938370723,-151.0,0.00038356,120]
[405279482,1770938370768,-151.0,0.00038356,120]
[405279483,1770938370812,-151.0,0.00038356,120]
[405279484,1770938370854,-907.986333,0.00038356,120]
[405279485,1770938370893,-907.986333,0.00038356,120]
[405279486,1770938370932,-907.986333,0.00038356,120]
[405279487,1770938370971,-907.986333,0.00038356,120]
[405279488,1770938371009,-907.986333,0.00038356,120]
[405279489,1770938371049,-907.986333,0.00038356,120]
[405279490,1770938371087,-907.986333,0.00038356,120]
[405279491,1770938371125,-907.986333,0.00038356,120]
[405279492,1770938371165,-907.986333,0.00038356,120]
[405279493,1770938371201,-907.986333,0.00038356,120]
[405279494,1770938371238,-907.986333,0.00038356,120]
[405279495,1770938371278,-907.986333,0.00038356,120]
[405279496,1770938371318,-907.986333,0.00038356,120]
[405279497,1770938371357,-907.986333,0.00038356,120]
[405279498,1770938371437,-907.986333,0.00038356,120]
[405279499,1770938371475,-907.986333,0.00038356,120]
[405279500,1770938371516,-907.986333,0.00038356,120]
[405279501,1770938371560,-907.986333,0.00038356,120]
[405279502,1770938371603,-907.986333,0.00038356,120]
[405279503,1770938371645,-907.98634,0.00038356,120]
[405279504,1770938371685,-200.0,0.00038531,120]
[405279505,1770938371724,-631.46,0.000387,30]
[405279506,1770938371760,-400.0,0.00039,120]
[405279507,1770938371802,-178.60266112,0.00039257,120]
[405279508,1770938371842,-5025.65369862,0.000395,80]
[405279509,1770938371882,-200.0,0.00039671,120]
[405279510,1770938371922,-2000.0,0.00039702,30]
[405279511,1770938371967,-168.3888056,0.00039702,30]
[405279512,1770938372010,-163.99,0.00039789,120]
[405279513,1770938372051,-234.63027,0.000398,120]
[405279514,1770938372091,-163.99,0.00039889,120]
[405279515,1770938372130,-2000.0,0.00039898,30]
[405279516,1770938372170,-162.380719,0.00039898,30]
[405279517,1770938372207,-2000.0,0.00039899,30]
[405279518,1770938372248,-156.587,0.00039899,30]
[405279519,1770938372289,-1888.0,0.00039998,31]
[405279520,1770938372336,-2000.0,0.00039998,31]
[405279521,1770938372391,-151.0,0.00039998,31]
[405279522,1770938372435,-211347.70792372,0.0004,120]
[405279523,1770938372477,-88315.32662907,0.0004,120]
[405279524,1770938372520,-385.4405651,0.0004,120]
[405279525,1770938372563,-169.4442466,0.0004,30]
[405279526,1770938372608,-200.0,0.0004,120]
[405279527,1770938372649,-226920.25777221,0.0004,120]
[405279528,1770938372689,-200.0,0.0004,120]
[405279529,1770938372732,-224228.14760217,0.0004,120]
[405279530,1770938372774,-1013.0,0.0004,120]
[405279531,1770938372820,-200.5,0.0004,60]
[405279532,1770938372863,-271529.29856911,0.0004,120]
[405279533,1770938372905,-177.95455242,0.0004,30]
[405279534,1770938372948,-89250.57931943,0.0004,120]
[405279535,1770938372989,-3511.36112711,0.0004,60]
[405279536,1770938373029,-884.909817,0.0004,120]
[405279537,1770938373069,-679.0,0.0004,120]
[405279538,1770938373110,-400.0,0.0004,120]
[405279539,1770938373151,-349059.29420029,0.0004,120]
[405279540,1770938373192,-2201.91322026,0.0004,30]
[405279541,1770938373236,-346.77,0.0004,30]
[405279542,1770938373278,-208.58,0.0004,30]
[405279543,1770938373323,-3233.8,0.0004,30]
[405279544,1770938373366,-163.99,0.00040029,120]
[405279545,1770938373410,-163.99424304,0.00040129,120]
[405279546,1770938373452,-200.0,0.00040199,120]
[405279547,1770938373494,-200.0,0.00040208,120]
[405279548,1770938373537,-200.0,0.00040348,120]
[405279549,1770938373583,-500.0,0.000404,30]
[405279550,1770938373628,-1000.0,0.000404,30]
[405279551,1770938373672,-1000.0,0.000404,30]
[405279552,1770938373718,-631.46,0.000404,30]
[405279553,1770938373761,-1000.0,0.000406,30]
[405279554,1770938373804,-4876.85135218,0.000407,90]
[405279555,1770938373847,-1000.0,0.000407,30]
[405279556,1770938373891,-864.0,0.00040727,60]
[405279557,1770938373932,-654.0678,0.000408,60]
[405279558,1770938373974,-528.3657,0.000408,120]
[405279559,1770938374016,-720.0966,0.000408,120]
[405279560,1770938374056,-2339.6971,0.000408,120]
[405279561,1770938374098,-882.18,0.000408,120]
[405279562,1770938374136,-754.7598,0.000408,60]
[405279563,1770938374293,-1697.335,0.000408,120]
[405279564,1770938374344,-1697.33,0.000408,30]
[405279565,1770938374386,-1673.7886,0.000408,90]
[405279566,1770938374428,-805.1348,0.000408,120]
[405279567,1770938374471,-200.0,0.00040871,120]
[405279568,1770938374515,-200.0,0.00040879,120]
[405279569,1770938374560,-200.0,0.00040896,120]
[405279570,1770938374604,-505.95,0.00040993,120]
[405279571,1770938374647,-1000.0,0.00041,120]
[405279572,1770938374688,-571.12181593,0.00041,120]
[405279573,1770938374730,-1000.0,0.00041,30]
[405279574,1770938374772,-400.0,0.00041,120]
[405279575,1770938374818,-200.0,0.00041095,120]
[405279576,1770938374862,-799.0,0.00041096,120]
[405279577,1770938374905,-50000.0,0.00041096,120]
[405279578,1770938374948,-778.88,0.00041096,120]
[405279579,1770938374992,-200.0,0.00041186,120]
[405279580,1770938375038,-200.0,0.00041193,120]
[405279581,1770938375083,-200.0,0.00041193,120]
[405279582,1770938375125,-1000.0,0.000412,30]
[405279583,1770938375170,-200.0,0.00041237,120]
[405279584,1770938375213,-1000.0,0.000413,30]
[405279585,1770938375255,-500.0,0.000414,120]
[405279586,1770938375297,-2233533.1428,0.00041421,30]
[405279587,1770938375339,-1027.0,0.000415,30]
[405279588,1770938375380,-200.0,0.0004156,120]
[405279589,1770938375418,-1000.0,0.000416,30]
[405279590,1770938375457,-799.0,0.00041644,120]
[405279591,1770938375499,-200.0,0.00041658,120]
[405279592,1770938375548,-505.95,0.0004179,120]
[405279593,1770938375597,-1000.0,0.000419,30]
[405279594,1770938375645,-631.46,0.000419,30]
[405279595,1770938375691,-29344.0,0.00042,60]
[405279596,1770938375738,-200.34,0.00042,90]
[405279597,1770938375791,-200.0,0.00042,120]
[405279598,1770938375839,-400.0,0.00042,120]
[405279599,1770938375886,-208.58,0.00042,30]
[405279600,1770938375932,-3233.8,0.00042,30]
[405279601,1770938375979,-346.77,0.00042,30]
[405279602,1770938376028,-6510.01874347,0.00042,120]
[405279603,1770938376072,-200.0,0.00042079,120]
[405279604,1770938376116,-799.0,0.00042192,120]
[405279605,1770938376158,-1000.0,0.000422,30]
[405279606,1770938376202,-200.0,0.00042225,120]
[405279607,1770938376247,-200.0,0.00042281,120]
[405279608,1770938376291,-200.0,0.00042393,120]
[405279609,1770938376334,-2058.9,0.000424,120]
[405279610,1770938376376,-178.60266112,0.00042441,120]
[405279611,1770938376420,-151.0,0.00042466,120]
[405279612,1770938376461,-257.620619,0.00042466,120]
[405279613,1770938376500,-1000.0,0.000425,30]
[405279614,1770938376540,-1025.0,0.000425,30]
[405279615,1770938376587,-655.0,0.00042541,60]
[405279616,1770938376630,-932.0,0.00042541,60]
[405279617,1770938376672,-150.0,0.00042542,30]
[405279618,1770938376714,-150.0,0.00042543,30]
[405279619,1770938376757,-306.7199122,0.00042554,30]
[405279620,1770938376797,-380.0211895,0.00042555,30]
[405279621,1770938376837,-185.9379018,0.00042556,30]
[405279622,1770938376878,-380.0741088,0.00042556,30]
[405279623,1770938376918,-306.8120785,0.00042556,30]
[405279624,1770938376961,-150.0,0.00042557,30]
[405279625,1770938377002,-198.9495111,0.00042557,30]
[405279626,1770938377043,-150.0,0.00042557,30]
[405279627,1770938377083,-379.9682702,0.00042557,30]
[405279628,1770938377125,-505.95,0.00042588,120]
[405279629,1770938377164,-258.0,0.00042739,68]
[405279630,1770938377205,-429.82,0.0004274,120]
[405279631,1770938377246,-150.0,0.00042752,68]
[405279632,1770938377288,-150.0,0.00042752,68]
[405279633,1770938377331,-150.0,0.00042752,68]
[405279634,1770938377373,-150.0,0.00042752,68]
[405279635,1770938377415,-175.0,0.00042752,68]
[405279636,1770938377456,-1000.0,0.000428,30]
[405279637,1770938377499,-200.0,0.00042816,120]
[405279638,1770938377537,-315.0612,0.000429,120]
[405279639,1770938377573,-389.82624,0.000429,120]
[405279640,1770938377610,-1000.0,0.00043,120]
[405279641,1770938377648,-200.0,0.00043,120]
[405279642,1770938377683,-5028.934044,0.00043,120]
[405279643,1770938377720,-6176.72,0.00043,120]
[405279644,1770938377757,-400.0,0.00043,120]
[405279645,1770938377795,-200.0,0.00043012,120]
[405279646,1770938377833,-151.3184179,0.00043043,60]
[405279647,1770938377870,-151.3184179,0.00043075,60]
[405279648,1770938377908,-1000.0,0.000431,30]
[405279649,1770938377946,-200.0,0.0004318,120]
[405279650,1770938378095,-505.95,0.00043386,120]
[405279651,1770938378136,-359.54,0.000434,90]
[405279652,1770938378178,-359.54,0.000434,90]
[405279653,1770938378218,-808.25,0.000434,90]
[405279654,1770938378260,-16457.8538026,0.00043491,120]
[405279655,1770938378306,-816335.36966018,0.000435,120]
[405279656,1770938394307,-681926.21681886,0.000435,120]
[405279657,1770938394352,-34242.78152865,0.000435,120]
[405279658,1770938394397,-601.0,0.000435,60]
[405279659,1770938394438,-699.0,0.000435,60]
[405279660,1770938394484,-200.0,0.00043565,120]
[405279661,1770938394528,-200.0,0.00043579,120]
[405279662,1770938394705,-160.0,0.00043726,90]
[405279663,1770938394749,-182.94311141,0.000438,30]
[405279664,1770938394795,-200.0,0.00043968,120]
[405279665,1770938394838,-400.0,0.00044,120]
[405279666,1770938394883,-200.0,0.00044,120]
[405279667,1770938394933,-3233.8,0.000441,30]
[405279668,1770938394979,-346.77,0.000441,30]
[405279669,1770938395027,-505.95,0.00044184,120]
[405279670,1770938395071,-200.0,0.00044201,120]
[405279671,1770938395116,-200.0,0.00044347,120]
[405279672,1770938395160,-151.43935177,0.00044367,60]
[405279673,1770938395203,-151.3184179,0.00044456,60]
[405279674,1770938395245,-151.3184179,0.00044492,60]
[405279675,1770938395289,-301.7132,0.000445,120]
[405279676,1770938395333,-200.0,0.00044732,120]
[405279677,1770938395378,-1000.0,0.000448,60]
[405279678,1770938395418,-155.2640187,0.00044887,30]
[405279679,1770938395457,-991.2069483,0.000449,120]
[405279680,1770938395502,-505.95,0.00044981,120]
[405279681,1770938395548,-5960.0,0.00045,120]
[405279682,1770938395595,-471.00789333,0.00045,120]
[405279683,1770938395641,-636.80293795,0.00045,120]
[405279684,1770938395687,-1000.0,0.00045,120]
[405279685,1770938395732,-748.64128359,0.00045,30]
[405279686,1770938395778,-4000.0,0.00045,30]
[405279687,1770938395827,-400.0,0.00045,120]
[405279688,1770938395873,-151.3184179,0.00045166,60]
[405279689,1770938395918,-150.73,0.00045205,30]
[405279690,1770938395962,-1009.1940892,0.000454,120]
[405279691,1770938396005,-151.3184179,0.00045526,60]
[405279692,1770938396050,-151.3184179,0.00045622,60]
[405279693,1770938396095,-233.11,0.0004566,120]
[405279694,1770938396138,-151.3184179,0.00045684,60]
[405279695,1770938396182,-505.95,0.00045779,120]
[405279696,1770938396226,-10000.0,0.00046,120]
[405279697,1770938396275,-282.62721323,0.00046,30]
[405279698,1770938396324,-5369.0,0.00046,30]
[405279699,1770938396375,-223.61376823,0.00046,90]
[405279700,1770938396421,-646.6,0.00046,120]
[405279701,1770938396467,-400.0,0.00046,120]
[405279702,1770938396511,-186.07085846,0.00046149,60]
[405279703,1770938396553,-15197.68307126,0.00046158,30]
[405279704,1770938396596,-15197.68307126,0.00046158,30]
[405279705,1770938396638,-3233.8,0.00046305,30]
[405279706,1770938396681,-346.77,0.00046305,30]
[405279707,1770938396727,-152.88439177,0.00046365,60]
[405279708,1770938396771,-505.95,0.00046577,120]
[405279709,1770938396815,-1850.57,0.00046698,120]
[405279710,1770938396856,-10000.0,0.00047,120]
[405279711,1770938396899,-1000.0,0.00047,120]
[405279712,1770938396940,-6176.72,0.00047,120]
[405279713,1770938396985,-400.0,0.00047,120]
[405279714,1770938397027,-151.3184179,0.00047121,60]
[405279715,1770938397068,-640.0,0.000473,60]
[405279716,1770938397111,-1000.0,0.000473,60]
[405279717,1770938397160,-505.95,0.00047375,120]
[405279718,1770938397207,-151.3184179,0.00047513,60]
[405279719,1770938397264,-151.3184179,0.00047518,60]
[405279720,1770938397315,-1000.0,0.000476,60]
[405279721,1770938397364,-302.63683577,0.0004782,60]
[405279722,1770938397412,-2000.0,0.000479,120]
[405279723,1770938397461,-151.3184179,0.00047936,60]
[405279724,1770938397519,-10000.0,0.00048,120]
[405279725,1770938397566,-153.8530732,0.00048,120]
[405279726,1770938397613,-400.0,0.00048,120]
[405279727,1770938397661,-505.95,0.00048172,120]
[405279728,1770938397707,-389.82624,0.000482,120]
[405279729,1770938397757,-1000.0,0.000482,60]
[405279730,1770938397806,-1228.44037019,0.00048398,120]
[405279731,1770938397850,-1000.0,0.000485,60]
[405279732,1770938397894,-52925.55878685,0.00048663,30]
[405279733,1770938397939,-52925.55878685,0.00048663,30]
[405279734,1770938397985,-15000.0,0.000488,120]
[405279735,1770938398028,-151.3184179,0.00048903,60]
[405279736,1770938398069,-500.02914068,0.00048923,120]
[405279737,1770938398116,-505.95,0.0004897,120]
[405279738,1770938398160,-10000.0,0.00049,120]
[405279739,1770938398204,-3662.20744001,0.00049,120]
[405279740,1770938398247,-4321.66988975,0.00049,120]
[405279741,1770938398294,-400.0,0.00049,120]
[405279742,1770938398339,-631.46,0.00049,30]
[405279743,1770938398380,-151.3184179,0.0004906,60]
[405279744,1770938398422,-151.40915455,0.00049114,60]
[405279745,1770938398465,-1000.0,0.0004928,120]
[405279746,1770938398511,-244.0,0.0004928,120]
[405279747,1770938398553,-393646.16621167,0.00049315,120]
[405279748,1770938398699,-1564.45,0.00049315,120]
[405279749,1770938398742,-455.64054905,0.00049315,120]
[405279750,1770938398784,-20000.0,0.000495,120]
[405279751,1770938398825,-20000.0,0.0004956,120]
[405279752,1770938398866,-20000.0,0.0004958,120]
[405279753,1770938398907,-20000.0,0.000496,120]
[405279754,1770938398945,-1372.46164194,0.000496,120]
[405279755,1770938398985,-50000.0,0.0004965,120]
[405279756,1770938399025,-20000.0,0.000497,120]
[405279757,1770938399066,-20000.0,0.0004972,120]
[405279758,1770938399105,-10000.0,0.0004975,120]
[405279759,1770938399145,-505.95,0.00049768,120]
[405279760,1770938399185,-20000.0,0.000498,120]
[405279761,1770938399228,-20000.0,0.0004981,120]
[405279762,1770938399275,-20000.0,0.0004982,120]
[405279763,1770938399324,-20000.0,0.0004983,120]
[405279764,1770938399372,-20000.0,0.0004984,120]
[405279765,1770938399417,-20000.0,0.0004985,120]
[405279766,1770938399459,-20000.0,0.0004986,120]
[405279767,1770938399500,-20000.0,0.0004987,120]
[405279768,1770938399550,-894.03214704,0.0004987,120]
[405279769,1770938399594,-20000.0,0.0004988,120]
[405279770,1770938399639,-20000.0,0.0004989,120]
[405279771,1770938399683,-20000.0,0.000499,120]
[405279772,1770938399730,-20000.0,0.0004991,120]
[405279773,1770938399775,-20000.0,0.0004992,120]
[405279774,1770938399822,-20000.0,0.0004993,120]
[405279775,1770938399868,-20000.0,0.0004994,120]
[405279776,1770938399914,-20000.0,0.0004995,120]
[405279777,1770938399959,-13102.90197042,0.0005,120]
[405279778,1770938400006,-208.0,0.0005,120]
[405279779,1770938400054,-300000.0,0.0005,120]
[405279780,1770938400100,-14632.24994833,0.0005,120]
[405279781,1770938400147,-299.53985193,0.0005,90]
[405279782,1770938400194,-720.14983875,0.0005,120]
[405279783,1770938400240,-1157.96315069,0.0005,120]
[405279784,1770938400287,-217.89451967,0.0005,120]
[405279785,1770938400333,-495.92315232,0.0005,30]
[405279786,1770938400382,-570.74572706,0.0005,120]
[405279787,1770938400427,-4319.914673,0.0005,30]
[405279788,1770938400471,-7537.92048604,0.0005,120]
[405279789,1770938400514,-5023.60913656,0.0005,32]
[405279790,1770938400561,-14882.142914,0.0005,120]
[405279791,1770938400617,-228.72547908,0.0005,120]
[405279792,1770938400669,-200000.61698672,0.0005,120]
[405279793,1770938400724,-371.0,0.0005,120]
[405279794,1770938400783,-1000.0,0.0005,60]
[405279795,1770938400840,-156.0,0.0005,120]
[405279796,1770938400893,-155.58995582,0.0005,120]
[405279797,1770938400943,-400.0,0.0005,120]
[405279798,1770938400993,-20000.0,0.0005001,120]
[405279799,1770938401043,-1021.49,0.00050136,30]
[405279800,1770938401089,-505.95,0.00050566,120]
[405279801,1770938401143,-1021.49,0.00050821,33]
[405279802,1770938401191,-2000.0,0.000509,120]
[405279803,1770938401242,-490.32918089,0.0005099,90]
[405279804,1770938401291,-300.0,0.0005099,120]
[405279805,1770938401336,-400.0,0.00051,120]
[405279806,1770938401386,-4018.475985,0.00051,85]
[405279807,1770938401435,-238.0752,0.000512,120]
[405279808,1770938401481,-377.18,0.000512,120]
[405279809,1770938401529,-377.18,0.000512,120]
[405279810,1770938401575,-156.0,0.000513,120]
[405279811,1770938401623,-505.95,0.00051363,120]
[405279812,1770938401670,-365.65365557,0.00051493,120]
[405279813,1770938401719,-1021.49,0.00051506,36]
[405279814,1770938401768,-50000.0,0.0005155,120]
[405279815,1770938401815,-331.48,0.00051595,120]
[405279816,1770938401863,-50000.0,0.000519,120]
[405279817,1770938401911,-400.0,0.00052,120]
[405279818,1770938401959,-5000.48776,0.00052,30]
[405279819,1770938402008,-831.0,0.00052,120]
[405279820,1770938402059,-424.70041455,0.00052054,120]
[405279821,1770938402585,600.0,0.0003416,30]
[405279822,1770938402653,720.0,0.00037576,30]
[405279823,1770938403042,864.0,0.00041334,60]
[405279824,1770938403093,2000.0,0.00052055,30]
[405279825,1770938403500,1000.0,0.00045468,120]
[405279826,1770938403577,2000.0,0.00052055,30]
[405279827,1770938404021,1000.0,0.00050014,120]
[405279828,1770938404501,244.0,0.00050014,120]
[405279830,1770938633724,160.2,0.0002,14]
[405279836,1770938923354,1338.46836243,0.00019,2]
[405279837,1770938923452,3773.77355761,0.00019,2]
[405279838,1770938949164,-156.14114281,0.000238,2]
[405279839,1770938949184,-5938.39643942,0.00024,2]
[405279840,1770938949204,-200.15,0.00024,14]
[405279841,1770938949226,-300.0,0.00024649,2]
[405279842,1770938949246,-5041.62237275,0.0002465,2]
[405279843,1770938949264,-150.0,0.00024658,2]
[405279844,1770938949286,-437.92,0.00024763,10]
[405279845,1770938949307,-364.93,0.00024763,10]
[405279846,1770938949326,-500.0,0.00024773,2]
[405279847,1770938949347,-500.0,0.00024773,2]
[405279848,1770938949369,-189.11332016,0.00024773,2]
[405279849,1770938949390,-500.0,0.00024773,2]
[405279850,1770938949413,-500.0,0.00024773,2]
[405279851,1770938949441,-500.0,0.00024773,2]
[405279852,1770938949468,-500.0,0.00024773,2]